bitfinex/quotes_BTCUSD_20250226
["timestamp","ask_amount","ask_price","bid_price","bid_amount"]
[1740603534428,0.005093,84866.0,84865.0,0.017]
[1740603534658,0.0008476,84890.0,84874.0,0.037]
[1740603534864,0.1818225,84875.0,84874.0,0.037]
[1740603535496,0.18223216,84875.0,84874.0,0.037]
[1740603537564,0.18223216,84875.0,84874.0,0.017]
[1740603537928,0.18213325,84875.0,84874.0,0.037]
[1740603540047,0.18213325,84875.0,84874.0,0.017]
[1740603540461,0.00540325,84875.0,84874.0,0.037]
[1740603540869,0.176722,84879.0,84878.0,0.0194]
[1740603541317,0.176724,84878.0,84877.0,0.017]
[1740603541520,0.17673,84875.0,84874.0,0.01712238]
[1740603541737,0.17673,84875.0,84874.0,0.00012238]
[1740603542159,0.17673,84875.0,84874.0,0.01712238]
[1740603542341,0.17673,84875.0,84874.0,0.00012238]
[1740603542542,0.27451907,84875.0,84874.0,0.00012238]
[1740603542750,0.17673,84875.0,84874.0,0.00012238]
[1740603542892,0.30123,84875.0,84874.0,0.00012238]
[1740603543317,0.30123,84875.0,84778.0,0.2504637]
[1740603543318,0.0006,84857.0,84821.0,0.017]
[1740603543533,0.0942657,84869.0,84846.0,0.017]
[1740603543754,0.235696,84855.0,84851.0,0.017]
[1740603543968,0.235696,84855.0,84818.0,0.00914262]
[1740603543969,0.176782,84850.0,84849.0,0.017]
[1740603544375,0.0942657,84869.0,84849.0,0.017]
[1740603544376,0.176753,84864.0,84863.0,0.017]
[1740603544574,0.471286,84874.0,84858.0,0.017]
[1740603544775,0.176767,84857.0,84853.0,0.017]
[1740603544980,0.176767,84857.0,84811.0,0.02]
[1740603544981,0.235708,84851.0,84844.0,0.01740966]
[1740603545213,0.176792,84845.0,84844.0,0.01740966]
[1740603545395,0.176792,84845.0,84844.0,0.00040966]
[1740603545789,0.244892,84845.0,84844.0,0.00040966]
[1740603545995,0.244892,84845.0,84817.0,4e-05]
[1740603545996,0.176849,84818.0,84817.0,4e-05]
[1740603547476,0.176874,84806.0,84805.0,0.0004238]
[1740603547675,0.218203,84806.0,84805.0,0.0005462]
[1740603547886,0.176874,84806.0,84805.0,0.0005462]
[1740603548094,0.0942657,84807.0,84756.0,0.0050925]
[1740603548095,0.176905,84791.0,84756.0,0.0050925]
[1740603548293,0.2717707,84791.0,84790.0,0.00521498]
[1740603548495,0.176918,84785.0,84763.0,0.017]
[1740603548696,0.17693,84779.0,84763.0,0.017]
[1740603548899,0.17693,84779.0,84778.0,0.00058628]
[1740603549538,0.0942657,84780.0,84756.0,0.0050925]
[1740603549539,0.176976,84757.0,84756.0,0.0050925]
[1740603549739,0.176976,84757.0,84756.0,0.00521512]
[1740603550507,0.176989,84751.0,84738.0,0.017]
[1740603550709,0.2419436,84751.0,84750.0,0.00016265]
[1740603551282,0.176989,84751.0,84750.0,0.00016265]
[1740603551978,0.235981,84753.0,84739.0,0.0020133]
[1740603551979,0.177012,84740.0,84739.0,0.0020133]
[1740603552179,0.177612,84740.0,84739.0,0.00213596]
[1740603552366,0.177047,84723.0,84722.0,0.0004241]
[1740603552519,0.177047,84723.0,84722.0,0.00083285]
[1740603552721,0.23570553,84723.0,84722.0,0.00083285]
[1740603552923,0.177047,84723.0,84722.0,0.00083285]
[1740603553129,0.177651,84721.0,84719.0,0.0004636]
[1740603553335,0.19219185,84721.0,84719.0,0.0004636]
[1740603553546,0.01514085,84720.0,84719.0,0.0004636]
[1740603553750,0.01514085,84720.0,84708.0,4e-05]
[1740603553751,0.177676,84709.0,84708.0,4e-05]
[1740603554122,0.177693,84701.0,84700.0,4e-05]
[1740603554329,0.177693,84701.0,84693.0,0.0008456]
[1740603554330,0.180708,84694.0,84693.0,0.0008456]
[1740603554506,0.0006,84676.0,84668.0,0.1032449]
[1740603554737,0.177156,84671.0,84668.0,0.1032449]
[1740603555146,0.177156,84671.0,84669.0,0.017]
[1740603555353,0.01692,84705.0,84668.0,0.1032449]
[1740603555530,0.03400756,88222.0,84668.0,0.1032449]
[1740603555531,0.177156,84671.0,84668.0,0.1032449]
[1740603556382,0.035592,84671.0,84670.0,0.01704]
[1740603556608,0.035592,84671.0,84670.0,4e-05]
[1740603556811,0.036001,84671.0,84670.0,0.01704]
[1740603557325,0.000409,84671.0,84670.0,0.03644]
[1740603557528,0.177118,84689.0,84688.0,0.017]
[1740603557725,0.177137,84680.0,84679.0,0.017]
[1740603557978,0.1948507,84680.0,84679.0,0.017]
[1740603558178,0.177137,84680.0,84679.0,0.017]
[1740603558351,0.177156,84671.0,84670.0,0.01716279]
[1740603558761,0.0194,84689.0,84670.0,0.01716279]
[1740603558762,0.177141,84678.0,84670.0,0.01716279]
[1740603559028,0.0194,84689.0,84688.0,0.017]
[1740603559414,0.0194,84689.0,84670.0,0.01716279]
[1740603559415,0.177156,84671.0,84670.0,0.01716279]
[1740603559583,0.177156,84671.0,84670.0,0.03656279]
[1740603559762,0.177156,84671.0,84670.0,0.01716279]
[1740603559962,0.2421118,84671.0,84670.0,0.01716279]
[1740603560233,0.236198,84675.0,84671.0,0.017]
[1740603560542,0.236198,84675.0,84672.0,0.017]
[1740603560543,0.177152,84673.0,84672.0,0.017]
[1740603560953,0.177145,84677.0,84676.0,0.017]
[1740603561169,0.177156,84671.0,84670.0,0.01716279]
[1740603561573,0.01392,84715.0,84688.0,0.017]
[1740603561781,0.236155,84690.0,84688.0,0.017]
[1740603562000,0.0006,84723.0,84688.0,0.017]
[1740603562208,0.236052,84727.0,84714.0,0.017]
[1740603562399,0.236052,84727.0,84726.0,0.0364]
[1740603562637,0.177009,84741.0,84740.0,0.017]
[1740603562845,0.177012,84740.0,84739.0,0.017]
[1740603563465,0.196412,84740.0,84739.0,0.017]
[1740603563672,0.196412,84740.0,84739.0,0.01712279]
[1740603564202,0.196412,84740.0,84739.0,0.00012279]
[1740603564617,0.25604074,84740.0,84739.0,0.00012279]
[1740603564818,0.177058,84718.0,84717.0,0.017]
[1740603565414,0.413102,84725.0,84724.0,0.017]
[1740603565619,0.236059,84725.0,84721.0,0.0194]
[1740603565823,0.177049,84722.0,84721.0,0.0364]
[1740603566034,0.236038,84733.0,84721.0,0.0364]
[1740603566035,0.37755216,84751.0,84735.0,0.017]
[1740603566251,0.17702,84736.0,84735.0,0.017]
[1740603566446,0.236024,84738.0,84731.0,0.017]
[1740603566447,0.177028,84732.0,84731.0,0.017]
[1740603566878,0.3245495,84732.0,84729.0,0.017]
[1740603567081,0.0194,84740.0,84699.0,0.0485]
[1740603567082,0.177095,84700.0,84699.0,0.0655]
[1740603567285,0.177095,84700.0,84699.0,0.08502432]
[1740603567692,0.177095,84700.0,84699.0,0.01712432]
[1740603567903,0.177095,84700.0,84699.0,0.03652432]
[1740603568116,0.03557,84702.0,84701.0,0.0364]
[1740603568329,0.177018,84737.0,84736.0,0.017]
[1740603568535,0.035563,84719.0,84718.0,0.017]
[1740603568950,0.177066,84714.0,84713.0,0.017]
[1740603569146,0.177118,84689.0,84688.0,0.03644]
[1740603569379,0.236149,84692.0,84688.0,0.01704]
[1740603569585,0.177118,84689.0,84688.0,0.00016432]
[1740603570261,0.177118,84689.0,84670.0,0.0004635]
[1740603570262,0.177152,84673.0,84672.0,0.017]
[1740603570494,0.41328,84688.0,84687.0,0.017]
[1740603570907,0.41340267,84688.0,84687.0,0.017]
[1740603571121,0.41340267,84688.0,84687.0,0.0364]
[1740603571122,0.19664267,84688.0,84687.0,0.0364]
[1740603571324,0.01952267,84688.0,84687.0,0.0364]
[1740603571530,0.17724267,84688.0,84687.0,0.0194]
[1740603571834,0.17724267,84688.0,84687.0,0.0364]
[1740603572501,0.17724267,84688.0,84687.0,0.0194]
[1740603572728,0.17724267,84688.0,84687.0,0.01944]
[1740603572958,0.17724267,84688.0,84687.0,4e-05]
[1740603573211,0.21091907,84688.0,84687.0,4e-05]
[1740603573694,0.21091907,84688.0,84670.0,0.0004635]
[1740603573695,0.177156,84671.0,84670.0,0.0004635]
[1740603574167,0.177177,84661.0,84660.0,0.0059712]
[1740603574351,0.23371875,84661.0,84660.0,0.0059712]
[1740603574582,0.177225,84638.0,84629.0,0.017]
[1740603574786,0.177242,84630.0,84629.0,0.0169234]
[1740603575602,0.194165,84630.0,84629.0,0.0169234]
[1740603575859,0.17726,84621.0,84620.0,0.0228946]
[1740603576296,0.01704553,84630.0,84629.0,0.0169234]
[1740603576518,0.01704553,84630.0,84629.0,0.0363234]
[1740603576769,0.177145,84676.0,84675.0,0.0169234]
[1740603576998,0.0001231,84687.0,84686.0,0.0169234]
[1740603577200,0.0001231,84687.0,84685.0,0.0169234]
[1740603577384,0.2362871,84687.0,84686.0,0.0169234]
[1740603577606,0.177145,84676.0,84675.0,0.0169234]
[1740603578320,0.17715,84674.0,84673.0,0.0169234]
[1740603578519,0.177189,84655.0,84654.0,0.0169234]
[1740603579382,0.177189,84655.0,84649.0,0.01376743]
[1740603579383,0.1772,84650.0,84649.0,0.01376743]
[1740603579548,0.1772,84650.0,84649.0,0.03069083]
[1740603579709,0.17716,84650.0,84649.0,0.0173324]
[1740603580125,0.17716,84650.0,84649.0,0.000409]
[1740603580336,0.0006,84654.0,84635.0,0.0169234]
[1740603580593,0.00041034,84650.0,84629.0,0.0169234]
[1740603580752,0.177242,84630.0,84629.0,0.0169234]
[1740603580960,0.177254,84624.0,84623.0,0.0169234]
[1740603581190,0.236331,84627.0,84620.0,0.0064346]
[1740603581367,0.17726,84621.0,84620.0,0.0064346]
[1740603581573,0.242253,84621.0,84620.0,0.0064346]
[1740603581769,0.242253,84621.0,84620.0,0.023358]
[1740603581977,0.17726,84621.0,84620.0,0.023358]
[1740603582193,0.17767009,84621.0,84620.0,0.023358]
[1740603582394,0.17767009,84621.0,84620.0,0.0064346]
[1740603583365,0.177281,84611.0,84610.0,8e-05]
[1740603585116,0.177319,84593.0,84592.0,0.0169234]
[1740603585624,0.236378,84610.0,84589.0,0.0039081]
[1740603585625,0.236353,84619.0,84612.0,0.0169234]
[1740603585879,0.177242,84630.0,84629.0,0.0169234]
[1740603586119,0.0827,84669.0,84614.0,0.0789]
[1740603586120,0.177273,84615.0,84614.0,0.0789]
[1740603586838,0.0194,84623.0,84614.0,0.0789]
[1740603587035,0.177267,84618.0,84617.0,0.37785532]
[1740603587251,0.035604,84626.0,84617.0,0.37785532]
[1740603587465,0.035604,84626.0,84614.0,0.0789]
[1740603587672,0.236272,84648.0,84618.0,0.37785532]
[1740603587897,0.035597,84644.0,84629.0,0.01454085]
[1740603588100,0.236251,84656.0,84628.0,0.37785532]
[1740603588314,0.236251,84656.0,84629.0,0.01454085]
[1740603588520,0.236284,84644.0,84618.0,0.37785532]
[1740603588727,0.035596,84648.0,84631.0,0.02]
[1740603588919,0.177212,84644.0,84643.0,0.37785532]
[1740603589161,0.177235,84633.0,84632.0,0.0484]
[1740603589563,0.035597,84644.0,84632.0,0.0484]
[1740603589800,0.177235,84633.0,84632.0,0.0484]
[1740603590557,0.177235,84633.0,84632.0,0.07074257]
[1740603591006,0.2457797,84633.0,84632.0,0.02234257]
[1740603591161,0.035597,84638.0,84632.0,0.02234257]
[1740603591381,0.236306,84636.0,84632.0,0.02234257]
[1740603591580,0.177235,84633.0,84632.0,0.02234257]
[1740603592013,0.035597,84638.0,84633.0,0.0085932]
[1740603592236,0.01388,84685.0,84633.0,0.0085932]
[1740603592388,0.177231,84635.0,84634.0,0.09452633]
[1740603592832,0.177233,84634.0,84633.0,0.0085932]
[1740603593045,0.236283,84644.0,84633.0,0.0085932]
[1740603593245,0.014541,84645.0,84633.0,0.02313405]
[1740603593457,0.8562,84882.0,84633.0,0.02313405]
[1740603593458,0.24216,84706.0,84643.0,0.09452633]
[1740603593671,0.035587,84662.0,84652.0,0.09452633]
[1740603593878,0.035587,84662.0,84653.0,0.01454085]
[1740603594084,0.236153,84691.0,84653.0,0.01454085]
[1740603594292,0.035585,84667.0,84662.0,0.01454085]
[1740603594511,1.257826,84730.0,84661.0,0.09452633]
[1740603594512,0.95,84664.0,84663.0,0.14004085]
[1740603594720,0.8609649,84664.0,84663.0,0.14004085]
[1740603594940,0.8609649,84664.0,84663.0,0.17961402]
[1740603594941,0.86108795,84664.0,84663.0,0.17961402]
[1740603595146,0.83437793,84664.0,84663.0,0.24352738]
[1740603595373,0.83437793,84664.0,84663.0,0.28352738]
[1740603595374,0.57817793,84664.0,84663.0,0.28352738]
[1740603595588,0.57817793,84664.0,84663.0,0.33520038]
[1740603595589,0.31825568,84664.0,84663.0,0.33520038]
[1740603595802,0.31825568,84664.0,84663.0,0.34908038]
[1740603595803,0.29425568,84664.0,84663.0,0.34908038]
[1740603596023,0.29425568,84664.0,84663.0,0.59908038]
[1740603596229,0.29152155,84664.0,84663.0,0.59908038]
[1740603596437,0.20820504,84664.0,84663.0,0.59908038]
[1740603596654,0.20820504,84664.0,84663.0,0.42190738]
[1740603596869,0.08234656,84664.0,84663.0,0.51140738]
[1740603597091,0.05339659,84664.0,84663.0,0.51140738]
[1740603597303,0.0008478,84715.0,84687.0,0.05454085]
[1740603597723,0.0008478,84715.0,84687.0,0.05619324]
[1740603598371,0.0008478,84715.0,84687.0,0.1001066]
[1740603598586,0.177067,84714.0,84687.0,0.1201066]
[1740603598791,0.0008478,84715.0,84687.0,0.17355977]
[1740603599439,0.0008478,84715.0,84687.0,0.10964641]
[1740603600074,0.0008478,84715.0,84687.0,0.08964641]
[1740603600075,0.236108,84707.0,84687.0,0.08964641]
[1740603600279,0.0008478,84715.0,84687.0,0.09345317]
[1740603600515,0.0008478,84715.0,84687.0,0.07957317]
[1740603600729,0.0008478,84715.0,84687.0,0.1879795]
[1740603600952,0.2394454,84710.0,84687.0,0.03957317]
[1740603601183,0.0033444,84710.0,84687.0,0.07957317]
[1740603601395,0.0033444,84710.0,84687.0,0.0812258]
[1740603601607,0.236104,84709.0,84687.0,0.08799402]
[1740603601819,0.236153,84691.0,84687.0,0.03957317]
[1740603602030,0.0823,84705.0,84687.0,0.03957317]
[1740603602256,0.0033444,84710.0,84687.0,0.06122608]
[1740603602494,0.0033444,84710.0,84687.0,0.07576663]
[1740603602706,0.0033444,84710.0,84687.0,0.09576663]
[1740603602904,0.0033444,84710.0,84687.0,0.09576636]
[1740603603133,0.0033444,84710.0,84687.0,0.23331519]
[1740603603354,0.0033444,84710.0,84709.0,0.04]
[1740603603595,0.00346745,84710.0,84709.0,0.41941356]
[1740603603797,0.00346745,84710.0,84709.0,0.43230249]
[1740603604012,0.00346745,84710.0,84709.0,0.52590249]
[1740603604217,0.00346745,84710.0,84709.0,0.81119258]
[1740603604436,0.00346745,84710.0,84709.0,0.78978249]
[1740603604650,0.00346745,84710.0,84709.0,0.79826512]
[1740603604857,0.00346745,84710.0,84709.0,0.41438348]
[1740603605095,0.00346745,84710.0,84709.0,0.04236263]
[1740603605309,0.05561972,84751.0,84710.0,0.04]
[1740603605511,0.00040993,84722.0,84711.0,0.0016522]
[1740603605727,0.00040993,84722.0,84712.0,0.01454085]
[1740603605935,0.00040993,84722.0,84709.0,0.04236263]
[1740603605936,0.177074,84711.0,84709.0,0.02236263]
[1740603606144,0.00040993,84722.0,84707.0,0.02]
[1740603606390,0.00040993,84722.0,84706.0,0.01388]
[1740603606594,0.17708,84707.0,84706.0,0.01388]
[1740603606797,0.00040993,84722.0,84676.0,0.00165265]
[1740603607024,0.37776164,84712.0,84666.0,0.02]
[1740603607223,0.37776164,84712.0,84667.0,0.00165304]
[1740603607528,0.37776164,84712.0,84674.0,0.01619391]
[1740603607750,0.37776164,84712.0,84674.0,0.00165306]
[1740603607969,0.00040993,84722.0,84684.0,0.02]
[1740603608170,0.00040993,84722.0,84678.0,0.10148257]
[1740603608171,0.37776164,84715.0,84678.0,0.10148257]
[1740603608386,0.37776164,84715.0,84679.0,0.00165301]
[1740603608601,0.0831,84714.0,84679.0,0.00165301]
[1740603608809,0.00040993,84722.0,84692.0,0.02]
[1740603609020,0.00040993,84722.0,84697.0,0.01454085]
[1740603609226,0.01854154,84712.0,84703.0,0.01454085]
[1740603609429,0.01854154,84712.0,84698.0,0.00165228]
[1740603609430,0.01854154,84712.0,84704.0,0.00165241]
[1740603609634,0.01854154,84712.0,84711.0,0.01454085]
[1740603610072,0.236118,84704.0,84690.0,0.00165231]
[1740603610287,0.177115,84691.0,84689.0,0.00165272]
[1740603610496,0.09485257,84722.0,84678.0,0.26388]
[1740603610701,0.177138,84680.0,84678.0,0.26388]
[1740603610907,0.177138,84680.0,84678.0,0.25]
[1740603611111,0.177138,84680.0,84658.0,0.10148257]
[1740603611112,0.236178,84682.0,84658.0,0.10148257]
[1740603611352,0.0807,84701.0,84659.0,0.00165337]
[1740603611766,0.17716,84670.0,84658.0,0.1018925]
[1740603611985,0.177118,84690.0,84658.0,0.1018925]
[1740603612228,0.0807,84701.0,84659.0,0.0016532]
[1740603612683,0.0807,84701.0,84658.0,0.02040993]
[1740603612684,0.177181,84659.0,84658.0,0.00040993]
[1740603616387,0.09444264,84662.0,84614.0,0.01388]
[1740603616615,0.17727,84617.0,84614.0,0.01388]
[1740603616816,0.0478,84636.0,84613.0,0.00083389]
[1740603617437,0.0785,84639.0,84613.0,0.00083389]
[1740603617679,0.0785,84639.0,84614.0,0.00165433]
[1740603617888,0.0498,84655.0,84620.0,0.01454085]
[1740603618110,0.236255,84654.0,84622.0,0.01454085]
[1740603618319,0.01855955,84633.0,84620.0,0.00165385]
[1740603618521,0.0498,84655.0,84614.0,0.00165406]
[1740603618721,0.0498,84655.0,84617.0,0.02]
[1740603618940,0.01855849,84630.0,84624.0,0.02]
[1740603619241,0.0454,84674.0,84621.0,0.01454085]
[1740603619242,0.09444264,84672.0,84630.0,0.00108119]
[1740603619475,0.01855623,84634.0,84631.0,0.00165362]
[1740603619720,0.01855623,84634.0,84630.0,0.01496119]
[1740603619954,0.09444264,84660.0,84617.0,0.00165377]
[1740603620176,0.01855632,84634.0,84613.0,0.00083389]
[1740603620389,0.09444264,84645.0,84613.0,0.00083389]
[1740603620604,0.177275,84614.0,84613.0,0.00083389]
[1740603620812,0.236336,84625.0,84613.0,0.00083389]
[1740603621030,0.0798,84626.0,84617.0,0.10148257]
[1740603621235,0.0798,84640.0,84618.0,0.01454085]
[1740603621462,0.0185609,84623.0,84618.0,0.01619496]
[1740603621676,0.316095,84640.0,84618.0,0.01454085]
[1740603621906,0.2363,84638.0,84618.0,0.01619494]
[1740603622120,0.0798,84640.0,84618.0,0.01619494]
[1740603622308,0.236297,84639.0,84618.0,0.01454085]
[1740603622520,0.236297,84639.0,84617.0,0.10148257]
[1740603622521,0.0798,84640.0,84617.0,0.10148257]
[1740603622735,0.177253,84625.0,84617.0,0.10148257]
[1740603622991,0.177267,84618.0,84617.0,0.10148257]
[1740603623276,0.09444264,84638.0,84613.0,0.00083389]
[1740603623730,0.177261,84621.0,84615.0,0.01454085]
[1740603623975,0.09444264,84638.0,84615.0,0.01454085]
[1740603624221,0.177256,84623.0,84614.0,0.01454085]
[1740603624454,0.0798,84640.0,84615.0,0.00165432]
[1740603624684,0.01856017,84633.0,84617.0,0.01454085]
[1740603624944,0.01856017,84633.0,84613.0,0.00083389]
[1740603624945,0.177257,84623.0,84613.0,0.00083389]
[1740603625228,0.177275,84614.0,84613.0,0.00083389]
[1740603625473,0.177273,84615.0,84614.0,0.0004236]
[1740603626385,0.236332,84627.0,84614.0,0.0004236]
[1740603626609,0.177267,84619.0,84614.0,0.01496445]
[1740603626822,0.236287,84643.0,84614.0,0.01496445]
[1740603627050,0.09444264,84650.0,84616.0,0.01454085]
[1740603627330,0.0457,84651.0,84618.0,0.01454085]
[1740603627528,0.0457,84651.0,84620.0,0.01454085]
[1740603627749,0.236262,84652.0,84622.0,0.01454085]
[1740603627957,0.0821,84655.0,84624.0,0.01454085]
[1740603628169,0.177214,84643.0,84626.0,0.01454085]
[1740603628394,0.0821,84655.0,84628.0,0.01454085]
[1740603628654,0.0821,84655.0,84630.0,0.01454085]
[1740603628933,0.0464,84668.0,84632.0,0.01454085]
[1740603629161,0.0464,84668.0,84634.0,0.01454085]
[1740603629375,0.0464,84668.0,84636.0,0.01454085]
[1740603629641,0.236228,84664.0,84638.0,0.01454085]
[1740603629865,0.01855607,84653.0,84640.0,0.01454085]
[1740603630124,0.01855607,84653.0,84642.0,0.01454085]
[1740603630558,0.236238,84661.0,84642.0,0.01454085]
[1740603630790,0.313615,84669.0,84642.0,0.01454085]
[1740603631058,0.0774,84669.0,84642.0,0.01619447]
[1740603631295,0.0774,84669.0,84644.0,0.01454085]
[1740603631765,0.236235,84662.0,84646.0,0.01454085]
[1740603631971,0.0774,84669.0,84648.0,0.01454085]
[1740603632178,0.0774,84669.0,84648.0,0.0161943]
[1740603632179,0.236241,84660.0,84648.0,0.0161943]
[1740603632389,0.313615,84669.0,84642.0,0.00177659]
[1740603632605,0.0774,84669.0,84642.0,0.00177659]
[1740603632849,0.177204,84648.0,84642.0,0.00177659]
[1740603633066,0.09444264,84668.0,84642.0,0.00012305]
[1740603633274,0.177214,84643.0,84642.0,0.00012305]
[1740603633700,0.177214,84644.0,84642.0,0.00012305]
[1740603633904,0.177214,84643.0,84642.0,0.00012305]
[1740603634317,0.09444264,84655.0,84642.0,0.00012305]
[1740603634522,0.177214,84643.0,84642.0,0.00012305]
[1740603635381,0.177197,84652.0,84642.0,0.00012305]
[1740603635591,0.177214,84643.0,84642.0,0.00012305]
[1740603636215,0.3484186,84643.0,84642.0,0.00012305]
[1740603636426,0.3484186,84643.0,84614.0,0.0004236]
[1740603636427,0.1712046,84643.0,84614.0,0.0004236]
[1740603636688,0.35431564,84615.0,84614.0,0.00083369]
[1740603637396,0.177275,84614.0,84613.0,0.02464006]
[1740603637839,0.17524408,84614.0,84613.0,0.02464006]
[1740603638065,0.193811,84614.0,84613.0,0.02464006]
[1740603638899,0.177325,84590.0,84569.0,0.01388]
[1740603639760,0.1958935,84590.0,84569.0,0.01388]
[1740603640376,0.2418935,84590.0,84573.0,0.0004236]
[1740603641632,0.223325,84590.0,84573.0,0.0004236]
[1740603641853,0.223325,84590.0,84589.0,0.00705365]
[1740603642475,0.0465,84608.0,84589.0,0.00705365]
[1740603642869,0.0465,84608.0,84590.0,0.00165492]
[1740603643137,0.177301,84602.0,84591.0,0.01454085]
[1740603643339,0.0004095,84615.0,84591.0,0.01454085]
[1740603643555,0.0004095,84615.0,84593.0,0.01250993]
[1740603643780,0.0004095,84615.0,84589.0,0.00705365]
[1740603643781,0.177325,84590.0,84589.0,0.00705365]
[1740603644429,0.177325,84590.0,84573.0,0.0004236]
[1740603644430,0.236435,84590.0,84574.0,0.0035091]
[1740603644613,0.55568809,84575.0,84574.0,0.0035091]
[1740603646116,0.55609709,84575.0,84574.0,0.0035091]
[1740603646346,0.57467156,84575.0,84574.0,0.0035091]
[1740603646557,0.69452821,84575.0,84574.0,0.0035091]
[1740603646778,0.57467156,84575.0,84574.0,0.0035091]
[1740603646983,0.70687156,84575.0,84574.0,0.0035091]
[1740603649804,0.32854047,84575.0,84574.0,0.0035091]
[1740603650012,0.32973262,84575.0,84574.0,0.0035091]
[1740603650247,0.177359,84574.0,84573.0,0.0004236]
[1740603650452,0.17544341,84574.0,84573.0,0.0004236]
[1740603651375,0.17663556,84574.0,84573.0,0.0004236]
[1740603654967,0.17663556,84574.0,84529.0,0.10301972]
[1740603654968,0.177407,84551.0,84529.0,0.10301972]
[1740603655168,0.58575681,84551.0,84529.0,0.10301972]
[1740603655383,0.62029766,84551.0,84529.0,0.10301972]
[1740603655640,0.64029766,84551.0,84529.0,0.10301972]
[1740603655851,0.177428,84541.0,84529.0,0.10301972]
[1740603656200,0.19196885,84541.0,84529.0,0.10301972]
[1740603656404,0.3318255,84541.0,84529.0,0.10301972]
[1740603657020,0.177439,84536.0,84529.0,0.10301972]
[1740603657221,0.21197985,84536.0,84529.0,0.10301972]
[1740603657603,0.21197985,84536.0,84529.0,0.0004236]
[1740603657952,0.27797985,84536.0,84529.0,0.0004236]
[1740603658530,0.30889185,84530.0,84529.0,0.0004236]
[1740603658852,0.40944413,84530.0,84529.0,0.0004236]
[1740603659621,0.25554315,84530.0,84529.0,0.0004236]
[1740603660038,0.3141315,84530.0,84529.0,0.0004236]
[1740603660147,0.2741315,84530.0,84529.0,0.0004236]
[1740603660357,0.2741315,84530.0,84504.0,0.0004237]
[1740603660358,0.177504,84505.0,84504.0,0.0004237]
[1740603660760,0.197504,84505.0,84504.0,0.0004237]
[1740603660941,0.30442461,84505.0,84504.0,0.0004237]
[1740603661244,0.39437141,84505.0,84504.0,0.0004237]
[1740603661690,0.40932075,84505.0,84504.0,0.0004237]
[1740603661927,0.04,84496.0,84495.0,8e-05]
[1740603662106,0.61043296,84496.0,84495.0,8e-05]
[1740603662364,0.68060481,84496.0,84495.0,8e-05]
[1740603662539,0.55589211,84496.0,84495.0,8e-05]
[1740603662774,0.57448749,84496.0,84495.0,8e-05]
[1740603663216,0.01859538,84496.0,84495.0,8e-05]
[1740603663631,0.00040849,84505.0,84496.0,0.282197]
[1740603663848,0.01388,84562.0,84497.0,0.07875613]
[1740603664061,0.00119296,84524.0,84505.0,0.02]
[1740603664261,0.177489,84513.0,84506.0,0.07875588]
[1740603664465,0.00119296,84524.0,84506.0,0.0771]
[1740603664665,0.00119296,84524.0,84507.0,0.00165634]
[1740603664814,0.00119296,84524.0,84508.0,0.00165603]
[1740603665020,0.236621,84523.0,84508.0,0.00165603]
[1740603665400,0.1775,84507.0,84506.0,0.09164085]
[1740603665601,0.177516,84500.0,84496.0,0.04590849]
[1740603665802,0.177515,84500.0,84496.0,0.04590849]
[1740603666004,0.37836911,84549.0,84497.0,0.01454085]
[1740603666200,0.00119296,84521.0,84499.0,0.01454085]
[1740603666426,0.00119296,84521.0,84501.0,0.01454085]
[1740603666628,0.00119296,84521.0,84503.0,0.01454085]
[1740603666820,0.00119296,84521.0,84505.0,0.01454085]
[1740603667029,0.177498,84508.0,84506.0,0.00165625]
[1740603667269,0.177498,84508.0,84496.0,0.04590849]
[1740603667270,0.37836911,84549.0,84496.0,0.04590849]
[1740603667452,0.37836911,84538.0,84496.0,0.04756492]
[1740603667673,0.37836911,84529.0,84496.0,0.00040849]
[1740603667884,0.177521,84497.0,84496.0,0.00040849]
[1740603668528,0.00119296,84498.0,84496.0,0.00040849]
[1740603668735,0.177521,84497.0,84496.0,0.00040849]
[1740603669495,0.19610944,84497.0,84496.0,0.00040849]
[1740603669815,0.01858844,84497.0,84496.0,0.00040849]
[1740603670022,0.01858844,84497.0,84496.0,0.08436487]
[1740603670023,0.19610944,84497.0,84496.0,0.08436487]
[1740603670235,0.19610944,84497.0,84496.0,0.00040849]
[1740603670759,0.177521,84497.0,84496.0,0.00040849]
[1740603671325,0.00119296,84498.0,84496.0,0.00040849]
[1740603671654,0.00119296,84498.0,84497.0,0.09359734]
[1740603671832,0.00119296,84498.0,84497.0,0.14289734]
[1740603671985,0.0478,84563.0,84498.0,0.01454085]
[1740603672197,0.035639,84553.0,84500.0,0.01454085]
[1740603672424,0.236543,84551.0,84502.0,0.01454085]
[1740603672625,0.177453,84530.0,84504.0,0.01454085]
[1740603672787,0.236543,84551.0,84506.0,0.01454085]
[1740603672994,0.035637,84561.0,84508.0,0.01454085]
[1740603673203,0.02,84589.0,84508.0,0.01454085]
[1740603673204,0.236538,84553.0,84509.0,0.07715587]
[1740603673413,0.01522333,84560.0,84511.0,0.01454085]
[1740603673636,0.354699,84579.0,84513.0,0.01454085]
[1740603673637,0.02,84564.0,84513.0,0.01454085]
[1740603673834,0.236573,84541.0,84515.0,0.01454085]
[1740603674041,0.17744,84536.0,84516.0,0.0155359]
[1740603674238,0.0008488,84530.0,84517.0,0.01454085]
[1740603674446,0.0008488,84530.0,84519.0,0.01454085]
[1740603674663,0.0008488,84530.0,84521.0,0.01454085]
[1740603674857,0.0008488,84530.0,84523.0,0.01454085]
[1740603675059,0.0008488,84530.0,84526.0,0.0819]
[1740603675260,0.0008488,84530.0,84527.0,0.01619643]
[1740603675538,0.0008488,84530.0,84527.0,0.01454085]
[1740603675693,0.0008488,84530.0,84526.0,0.0819]
[1740603675867,0.0008488,84530.0,84528.0,0.01262526]
[1740603676069,0.177453,84529.0,84528.0,0.00012305]
[1740603676302,0.0008488,84530.0,84528.0,0.00012305]
[1740603676638,0.0008488,84530.0,84528.0,0.00177893]
[1740603677461,0.00119251,84570.0,84528.0,0.00177893]
[1740603677661,0.00119251,84570.0,84539.0,0.0752]
[1740603677791,0.00119251,84570.0,84540.0,0.00165518]
[1740603677993,0.00119251,84570.0,84541.0,0.01454085]
[1740603678199,0.23644,84588.0,84542.0,0.00165545]
[1740603678432,0.09587099,84589.0,84542.0,0.00165545]
[1740603678433,0.236444,84587.0,84545.0,0.01454085]
[1740603678633,0.00119251,84589.0,84547.0,0.01454085]
[1740603678836,0.23644,84588.0,84549.0,0.01454085]